[Event "69th RUS-ch Women Higher League 2019"]
[Site "Yaroslavl"]
[Date "2019.07.04"]
[Round "7.6"]
[White "Garifullina, Leya"]
[Black "Borisova, Ekaterina"]
[Result "1-0"]
[ECO "B90"]
[WhiteElo "2246"]
[BlackElo "2267"]
[Annotator "NA"]
[PlyCount "85"]
[EventDate "2019.06.27"]
[EventType "swiss"]
[EventCountry "RUS"]
[SourceTitle "playchess.com"]
[Source "ChessBase"]
[SourceQuality "1"]
[TimeControl "40/5400+30:1800+30"]

1. e4 {[%emt 0:00:00]} c5 {[%emt 0:00:00]} 2. Nf3 {[%emt 0:00:00]} d6 {[%emt 0:00:00]} 3. d4 {[%emt 0:00:00]} cxd4 {[%emt 0:00:00]} 4. Nxd4 {[%emt 0:00:00]} Nf6 {[%emt 0:00:00]} 5. Nc3 {[%emt 0:00:01]} a6 {[%emt 0:00:00]} 6. h3 {[%emt 0:00:12]} e6 {[%emt 0:00:00]} 7. g4 {[%emt 0:00:05]} b5 {[%emt 0:00:00]} 8. Bg2 {[%emt 0:00:06]} Bb7 {[%emt 0:00:00]} 9. O-O {[%emt 0:00:07]} Nfd7 {[%emt 0:00:03]} 10. a4 {[%emt 0:01:06]} b4 {[%emt 0:00:35]} 11. Na2 {[%emt 0:00:48]} a5 {[%emt 0:03:09]} 12. c3 {[%emt 0:00:16]} Nc5 {[%emt 0:06:08]} 13. Re1 {[%emt 0:02:54]} bxc3 {[%emt 0:04:12]} 14. Nxc3 {[%emt 0:00:15]} Be7 {[%emt 0:00:23]} 15. Ndb5 {[%emt 0:00:43]} Nc6 {[%emt 0:05:11]} 16. Be3 {[%emt 0:02:00]} Nb4 {[%emt 0:09:38]} 17. Re2 {[%emt 0:00:47]} Qb6 {[%emt 0:08:15]} 18. Rd2 {[%emt 0:05:41]} Rd8 {[%emt 0:00:57]} 19. Rc1 {[%emt 0:01:53]} O-O {[%emt 0:02:01]} 20. Bf4 {[%emt 0:03:29]} Rd7 {[%emt 0:20:43]} 21. Bxd6 {[%emt 0:06:11]} Bxd6 {[%emt 0:05:13]} 22. Rxd6 {[%emt 0:00:00]} Rxd6 {[%emt 0:00:23]} 23. Qxd6 {[%emt 0:00:00]} Qxd6 24. Nxd6 Bc6 {[%emt 0:00:34]} 25. Nc4 {[%emt 0:02:05]} Ra8 {[%emt 0:04:58]} 26. Bf1 {[%emt 0:04:35]} h5 {[%emt 0:02:56]} 27. f3 {[%emt 0:00:50]} hxg4 {[%emt 0:00:53]} 28. hxg4 {[%emt 0:00:06]} Kf8 {[%emt 0:02:07]} 29. Ne5 {[%emt 0:02:19]} Bxa4 {[%emt 0:03:47]} 30. Nxa4 {[%emt 0:01:20]} Nxa4 {[%emt 0:00:05]} 31. b3 {[%emt 0:00:58]} Nb6 {[%emt 0:00:40]} 32. Rc7 {[%emt 0:00:08]} f6 {[%emt 0:00:38]} 33. Ng6+ {[%emt 0:00:17]} Kg8 {[%emt 0:00:21]} 34. Nf4 {[%emt 0:01:30]} Rf8 {[%emt 0:06:03]} 35. Rb7 {[%emt 0:01:22]} Nc8 {[%emt 0:02:23]} 36. Nxe6 {[%emt 0:00:48]} Re8 {[%emt 0:00:08]} 37. Nxg7 {[%emt 0:00:29]} Re7 {[%emt 0:00:11]} 38. Rb8 {[%emt 0:00:52]} Rc7 {[%emt 0:00:16]} 39. Nf5 {[%emt 0:00:11]} Nc6 {[%emt 0:00:26]} 40. Rb5 {[%emt 0:00:00]} Ne5 {[%emt 0:00:00]} 41. Be2 {[%emt 0:02:22]} Rc2 {[%emt 0:00:30]} 42. Kf1 {[%emt 0:00:56]} Na7 {[%emt 0:00:30]} 43. Rb8+ {[%emt 0:00:26]} 1-0

[Event "69th RUS-ch Women Higher League 2019"]
[Site "Yaroslavl"]
[Date "2019.07.04"]
[Round "7.7"]
[White "Maletina, Tatiana"]
[Black "Galliamova, Alisa"]
[Result "0-1"]
[ECO "D00"]
[WhiteElo "2273"]
[BlackElo "2444"]
[Annotator "NA"]
[PlyCount "62"]
[EventDate "2019.06.27"]
[EventType "swiss"]
[EventCountry "RUS"]
[SourceTitle "playchess.com"]
[Source "ChessBase"]
[SourceQuality "1"]
[TimeControl "40/5400+30:1800+30"]

1. d4 {[%emt 0:00:00]} d5 {[%emt 0:00:00]} 2. Bf4 {[%emt 0:00:00]} Nf6 {[%emt 0:00:00]} 3. e3 {[%emt 0:00:00]} c5 {[%emt 0:00:10]} 4. dxc5 {[%emt 0:00:00]} e6 {[%emt 0:02:14]} 5. b4 {[%emt 0:00:00]} a5 {[%emt 0:02:43]} 6. c3 {[%emt 0:00:06]} Nc6 {[%emt 0:07:24]} 7. Bb5 {[%emt 0:00:05]} Bd7 {[%emt 0:04:15]} 8. Qb3 {[%emt 0:00:16]} Nh5 {[%emt 0:16:52]} 9. Bxc6 {[%emt 0:34:27]} Bxc6 {[%emt 0:04:28]} 10. b5 {[%emt 0:06:00]} Nxf4 {[%emt 0:04:31]} 11. bxc6 {[%emt 0:13:51]} Nd3+ {[%emt 0:00:46]} 12. Kf1 {[%emt 0:00:07]} bxc6 {[%emt 0:01:58]} 13. Nf3 {[%emt 0:06:31]} Nxc5 {[%emt 0:01:58]} 14. Qc2 {[%emt 0:00:03]} Be7 {[%emt 0:04:17]} 15. Nbd2 {[%emt 0:00:31]} Bf6 {[%emt 0:03:51]} 16. g4 {[%emt 0:00:55]} O-O {[%emt 0:03:46]} 17. h4 {[%emt 0:08:38]} Rb8 {[%emt 0:04:39]} 18. g5 {[%emt 0:03:00]} Be7 {[%emt 0:00:15]} 19. Kg2 {[%emt 0:01:19]} Bd6 {[%emt 0:05:57]} 20. Rab1 {[%emt 0:09:06]} Qd7 {[%emt 0:10:10]} 21. Rxb8 {[%emt 0:13:34]} Rxb8 {[%emt 0:00:43]} 22. e4 {[%emt 0:01:21]} e5 {[%emt 0:01:28]} 23. Kf1 {[%emt 0:00:06]} Qg4 {[%emt 0:10:20]} 24. exd5 {[%emt 0:00:40]} cxd5 {[%emt 0:00:45]} 25. h5 {[%emt 0:00:05]} e4 {[%emt 0:01:09]} 26. Rh4 {[%emt 0:00:04]} Qf5 {[%emt 0:00:37]} 27. c4 {[%emt 0:01:27]} Nd3 {[%emt 0:01:18]} 28. cxd5 {[%emt 0:00:15]} exf3 {[%emt 0:00:57]} 29. Ne4 {[%emt 0:00:51]} Rc8 {[%emt 0:01:52]} 30. Nf6+ {[%emt 0:01:10]} gxf6 {[%emt 0:00:31]} 31. Rc4 {[%emt 0:00:09]} Qh3+ {[%emt 0:00:20]} 0-1

[Event "69th RUS-ch Women Higher League 2019"]
[Site "Yaroslavl"]
[Date "2019.07.04"]
[Round "7.9"]
[White "Bulatova, Kamaliya"]
[Black "Ambartsumova, Karina"]
[Result "1-0"]
[ECO "D37"]
[WhiteElo "2102"]
[BlackElo "2359"]
[Annotator "NA"]
[PlyCount "61"]
[EventDate "2019.06.27"]
[EventType "swiss"]
[EventCountry "RUS"]
[SourceTitle "playchess.com"]
[Source "ChessBase"]
[SourceQuality "1"]
[TimeControl "40/5400+30:1800+30"]

1. d4 {[%emt 0:00:00]} Nf6 {[%emt 0:00:00]} 2. c4 {[%emt 0:00:00]} e6 {[%emt 0:00:11]} 3. Nc3 {[%emt 0:00:08]} d5 {[%emt 0:00:29]} 4. Nf3 {[%emt 0:01:22]} Nbd7 {[%emt 0:07:56]} 5. g3 {[%emt 0:09:33]} Be7 {[%emt 0:09:14]} 6. Bg2 {[%emt 0:01:22]} O-O {[%emt 0:01:57]} 7. O-O {[%emt 0:01:13]} dxc4 {[%emt 0:07:52]} 8. e4 {[%emt 0:05:34]} a6 {[%emt 0:09:00]} 9. Qe2 {[%emt 0:06:36]} b5 {[%emt 0:08:36]} 10. e5 {[%emt 0:03:47]} Nd5 {[%emt 0:03:00]} 11. Nxd5 {[%emt 0:18:38]} exd5 {[%emt 0:00:14]} 12. e6 {[%emt 0:00:08]} Nb6 {[%emt 0:02:04]} 13. exf7+ {[%emt 0:00:19]} Rxf7 {[%emt 0:00:49]} 14. Ne5 {[%emt 0:00:14]} Rf6 {[%emt 0:01:19]} 15. a4 {[%emt 0:06:54]} bxa4 {[%emt 0:04:43]} 16. g4 {[%emt 0:07:15]} Bd7 {[%emt 0:06:14]} 17. g5 {[%emt 0:04:37]} Rf8 {[%emt 0:01:00]} 18. g6 {[%emt 0:02:52]} Be8 {[%emt 0:08:32]} 19. Bh3 {[%emt 0:03:03]} Qd6 {[%emt 0:01:45]} 20. gxh7+ {[%emt 0:05:08]} Kxh7 {[%emt 0:06:29]} 21. Ra3 {[%emt 0:01:24]} c5 {[%emt 0:05:25]} 22. dxc5 {[%emt 0:02:37]} Qxc5 {[%emt 0:04:06]} 23. Be6 {[%emt 0:00:37]} g5 {[%emt 0:00:35]} 24. Rh3+ {[%emt 0:03:08]} Kg7 {[%emt 0:00:01]} 25. Qc2 {[%emt 0:04:15]} Rh8 {[%emt 0:00:21]} 26. Rxh8 {[%emt 0:00:08]} Kxh8 {[%emt 0:00:04]} 27. Qf5 {[%emt 0:00:09]} Ra7 {[%emt 0:02:52]} 28. Qh3+ {[%emt 0:01:33]} Kg7 {[%emt 0:00:06]} 29. Ng4 {[%emt 0:00:02]} Bf7 {[%emt 0:01:46]} 30. Qh6+ {[%emt 0:00:24]} Kg8 {[%emt 0:00:04]} 31. Qg6+ {[%emt 0:00:03]} 1-0

[Event "69th RUS-ch Women Higher League 2019"]
[Site "Yaroslavl"]
[Date "2019.07.04"]
[Round "7.10"]
[White "Dordzhieva, Dinara"]
[Black "Kabanova, Ekaterina"]
[Result "1/2-1/2"]
[ECO "D26"]
[WhiteElo "2306"]
[BlackElo "2099"]
[Annotator "NA"]
[PlyCount "81"]
[EventDate "2019.06.27"]
[EventType "swiss"]
[EventCountry "RUS"]
[SourceTitle "playchess.com"]
[Source "ChessBase"]
[SourceQuality "1"]
[TimeControl "40/5400+30:1800+30"]

1. d4 {[%emt 0:00:00]} d5 {[%emt 0:00:00]} 2. Nf3 {[%emt 0:00:00]} Nf6 {[%emt 0:00:46]} 3. c4 {[%emt 0:00:00]} dxc4 {[%emt 0:01:26]} 4. e3 {[%emt 0:00:00]} e6 {[%emt 0:00:05]} 5. Bxc4 {[%emt 0:00:08]} a6 {[%emt 0:00:14]} 6. a4 {[%emt 0:00:24]} b6 {[%emt 0:01:44]} 7. O-O {[%emt 0:00:49]} Bb7 {[%emt 0:00:44]} 8. Qe2 {[%emt 0:00:07]} Nbd7 {[%emt 0:01:22]} 9. Nc3 {[%emt 0:02:19]} c5 {[%emt 0:01:25]} 10. Rd1 {[%emt 0:03:26]} Qc7 {[%emt 0:02:23]} 11. h3 {[%emt 0:03:49]} Be7 {[%emt 0:02:42]} 12. dxc5 Nxc5 13. Bd2 {[%emt 0:20:55]} O-O {[%emt 0:24:44]} 14. Rac1 {[%emt 0:00:32]} Qb8 {[%emt 0:00:19]} 15. Nd4 {[%emt 0:10:35]} Nd5 {[%emt 0:02:27]} 16. Bxd5 {[%emt 0:14:30]} exd5 {[%emt 0:01:33]} 17. b4 {[%emt 0:00:10]} Ne6 {[%emt 0:06:25]} 18. Qg4 {[%emt 0:01:00]} Nxd4 19. Qxd4 {[%emt 0:00:34]} Qd6 {[%emt 0:00:48]} 20. Ne2 {[%emt 0:09:38]} Bf6 {[%emt 0:02:16]} 21. Qg4 {[%emt 0:00:41]} Bc6 {[%emt 0:06:11]} 22. a5 {[%emt 0:09:45]} Ba4 {[%emt 0:01:51]} 23. Re1 {[%emt 0:00:36]} Bd7 {[%emt 0:08:01]} 24. Qf3 {[%emt 0:02:48]} bxa5 {[%emt 0:01:24]} 25. bxa5 {[%emt 0:00:56]} Rab8 {[%emt 0:02:02]} 26. Nf4 {[%emt 0:03:06]} Bb2 {[%emt 0:13:55]} 27. Rcd1 {[%emt 0:05:08]} Ba4 {[%emt 0:01:56]} 28. Rb1 {[%emt 0:00:05]} Bc2 {[%emt 0:00:10]} 29. Rxb2 {[%emt 0:00:07]} Rxb2 {[%emt 0:00:02]} 30. Bc3 {[%emt 0:00:07]} Rb5 {[%emt 0:01:41]} 31. Qg4 {[%emt 0:02:01]} Bg6 {[%emt 0:01:13]} 32. h4 {[%emt 0:00:13]} h5 {[%emt 0:06:36]} 33. Qg3 {[%emt 0:02:13]} Rc8 {[%emt 0:02:41]} 34. Bd4 {[%emt 0:06:20]} Rc6 {[%emt 0:00:02]} 35. Ra1 {[%emt 0:01:09]} Qc7 {[%emt 0:01:07]} 36. Qg5 {[%emt 0:00:52]} Rc1+ {[%emt 0:04:40]} 37. Rxc1 {[%emt 0:00:43]} Qxc1+ {[%emt 0:00:02]} 38. Kh2 {[%emt 0:00:02]} Qc2 {[%emt 0:01:32]} 39. Nxh5 {[%emt 0:01:55]} f6 {[%emt 0:01:58]} 40. Nxf6+ {[%emt 0:00:00]} gxf6 {[%emt 0:00:00]} 41. Qxf6 {[%emt 0:02:50]} 1/2-1/2

[Event "69th RUS-ch Women Higher League 2019"]
[Site "Yaroslavl"]
[Date "2019.07.04"]
[Round "7.11"]
[White "Komiagina, Maria"]
[Black "Bodnaruk, Anastasia"]
[Result "0-1"]
[ECO "B06"]
[WhiteElo "2254"]
[BlackElo "2440"]
[Annotator "NA"]
[PlyCount "132"]
[EventDate "2019.06.27"]
[EventType "swiss"]
[EventCountry "RUS"]
[SourceTitle "playchess.com"]
[Source "ChessBase"]
[SourceQuality "1"]
[TimeControl "40/5400+30:1800+30"]

1. e4 {[%emt 0:00:00]} d6 {[%emt 0:00:00]} 2. d4 {[%emt 0:00:00]} g6 {[%emt 0:00:00]} 3. Nc3 {[%emt 0:00:05]} Bg7 {[%emt 0:00:00]} 4. Be3 {[%emt 0:00:08]} a6 {[%emt 0:00:19]} 5. f4 {[%emt 0:00:13]} b5 {[%emt 0:00:20]} 6. Be2 {[%emt 0:00:18]} Nd7 {[%emt 0:08:41]} 7. Bf3 {[%emt 0:00:53]} Nb6 {[%emt 0:01:19]} 8. e5 {[%emt 0:08:12]} Rb8 {[%emt 0:01:41]} 9. Qe2 {[%emt 0:00:13]} e6 {[%emt 0:09:00]} 10. O-O-O {[%emt 0:00:18]} d5 {[%emt 0:10:30]} 11. g4 {[%emt 0:02:03]} Nc4 {[%emt 0:07:07]} 12. h4 {[%emt 0:00:42]} Qe7 {[%emt 0:08:15]} 13. Nb1 {[%emt 0:01:56]} f6 {[%emt 0:01:07]} 14. h5 {[%emt 0:03:34]} c5 {[%emt 0:05:38]} 15. h6 {[%emt 0:13:19]} Bf8 {[%emt 0:01:01]} 16. exf6 {[%emt 0:02:46]} Nxf6 {[%emt 0:06:10]} 17. dxc5 {[%emt 0:00:17]} Qc7 {[%emt 0:04:03]} 18. Nh3 {[%emt 0:02:18]} Nxe3 {[%emt 0:03:39]} 19. Qxe3 {[%emt 0:00:07]} Bxc5 {[%emt 0:00:42]} 20. Qe2 {[%emt 0:01:52]} O-O {[%emt 0:01:20]} 21. Rhf1 {[%emt 0:00:57]} Bd7 {[%emt 0:04:27]} 22. g5 {[%emt 0:02:57]} Ne8 {[%emt 0:04:24]} 23. Bg4 {[%emt 0:01:12]} Rb6 {[%emt 0:01:23]} 24. Nd2 {[%emt 0:00:43]} Bd4 {[%emt 0:05:33]} 25. Nb3 {[%emt 0:03:40]} Bh8 {[%emt 0:00:21]} 26. Kb1 {[%emt 0:00:27]} Qc4 {[%emt 0:03:56]} 27. Rd3 {[%emt 0:03:45]} Nc7 {[%emt 0:03:06]} 28. Qd2 {[%emt 0:08:01]} b4 {[%emt 0:01:52]} 29. Re1 {[%emt 0:03:50]} Nb5 {[%emt 0:04:22]} 30. Qf2 {[%emt 0:04:15]} Rd6 {[%emt 0:02:37]} 31. Qc5 {[%emt 0:19:15]} Rc8 {[%emt 0:00:35]} 32. Qxc4 {[%emt 0:00:24]} dxc4 {[%emt 0:01:33]} 33. Rxd6 {[%emt 0:00:06]} Nxd6 {[%emt 0:00:09]} 34. Nc1 {[%emt 0:00:47]} Kf7 {[%emt 0:00:40]} 35. Nf2 {[%emt 0:01:53]} Nf5 {[%emt 0:00:26]} 36. Ne4 {[%emt 0:00:32]} Ke7 {[%emt 0:00:59]} 37. Ne2 {[%emt 0:01:46]} Bc6 {[%emt 0:00:36]} 38. N2g3 {[%emt 0:02:48]} Bxe4 {[%emt 0:00:35]} 39. Nxe4 {[%emt 0:00:15]} a5 {[%emt 0:00:25]} 40. c3 {[%emt 0:00:00]} Rd8 {[%emt 0:00:00]} 41. Rd1 {[%emt 0:16:56]} Rxd1+ {[%emt 0:16:41]} 42. Bxd1 {[%emt 0:00:06]} Nd6 {[%emt 0:00:29]} 43. Bf3 {[%emt 0:10:15]} e5 {[%emt 0:08:23]} 44. Ng3 {[%emt 0:03:18]} exf4 {[%emt 0:01:10]} 45. Ne2 {[%emt 0:00:04]} bxc3 {[%emt 0:01:56]} 46. bxc3 {[%emt 0:00:16]} Be5 {[%emt 0:00:26]} 47. Bd5 {[%emt 0:00:24]} Nf5 {[%emt 0:01:30]} 48. Ng1 {[%emt 0:02:11]} Bxc3 {[%emt 0:03:57]} 49. Bxc4 {[%emt 0:00:12]} Nh4 {[%emt 0:00:35]} 50. Kc2 {[%emt 0:03:38]} Bd4 {[%emt 0:00:01]} 51. Nh3 {[%emt 0:01:32]} f3 {[%emt 0:00:55]} 52. Kd3 {[%emt 0:00:27]} Bb6 {[%emt 0:00:31]} 53. Ke4 {[%emt 0:04:50]} f2 {[%emt 0:00:12]} 54. Kf4 {[%emt 0:01:09]} Ng2+ {[%emt 0:00:30]} 55. Ke4 {[%emt 0:02:28]} Ne3 {[%emt 0:00:11]} 56. Nxf2 {[%emt 0:00:24]} Nxc4 {[%emt 0:00:02]} 57. Ng4 {[%emt 0:00:08]} Kf7 {[%emt 0:01:24]} 58. Nf6 {[%emt 0:01:15]} Bd8 {[%emt 0:00:24]} 59. Nxh7 {[%emt 0:00:23]} Be7 {[%emt 0:00:47]} 60. Kd5 {[%emt 0:00:20]} Nd2 {[%emt 0:00:29]} 61. Ke5 {[%emt 0:00:28]} Nf3+ {[%emt 0:00:19]} 62. Kf4 {[%emt 0:00:16]} Nd4 {[%emt 0:00:20]} 63. Kg4 {[%emt 0:01:21]} Ne6 {[%emt 0:00:07]} 64. Kh4 {[%emt 0:00:14]} Kg8 {[%emt 0:00:41]} 65. Nf6+ {[%emt 0:00:07]} Bxf6 {[%emt 0:00:04]} 66. gxf6 {[%emt 0:00:04]} Kh7 {[%emt 0:00:06]} 0-1

[Event "69th RUS-ch Women Higher League 2019"]
[Site "Yaroslavl"]
[Date "2019.07.04"]
[Round "7.12"]
[White "Tokmakova, Ulyana"]
[Black "Bivol, Alina"]
[Result "0-1"]
[ECO "A29"]
[WhiteElo "1878"]
[BlackElo "2391"]
[Annotator "NA"]
[PlyCount "128"]
[EventDate "2019.06.27"]
[EventType "swiss"]
[EventCountry "RUS"]
[SourceTitle "playchess.com"]
[Source "ChessBase"]
[SourceQuality "1"]
[TimeControl "40/5400+30:1800+30"]

1. c4 {[%emt 0:00:00]} e5 {[%emt 0:00:11]} 2. Nc3 {[%emt 0:00:00]} Nf6 {[%emt 0:00:25]} 3. Nf3 {[%emt 0:00:00]} Nc6 {[%emt 0:00:13]} 4. g3 {[%emt 0:00:00]} d5 {[%emt 0:00:26]} 5. cxd5 {[%emt 0:00:07]} Nxd5 {[%emt 0:00:03]} 6. Bg2 {[%emt 0:00:06]} Nb6 {[%emt 0:00:06]} 7. O-O {[%emt 0:00:09]} Be7 {[%emt 0:00:19]} 8. d3 {[%emt 0:00:06]} O-O {[%emt 0:01:17]} 9. a3 {[%emt 0:00:08]} Be6 {[%emt 0:03:01]} 10. b4 {[%emt 0:00:08]} Nd4 {[%emt 0:03:56]} 11. Nd2 {[%emt 0:02:19]} Nd5 {[%emt 0:11:08]} 12. Bb2 {[%emt 0:04:58]} Nxc3 {[%emt 0:02:16]} 13. Bxc3 {[%emt 0:00:12]} Bd5 {[%emt 0:01:14]} 14. Nc4 {[%emt 0:06:25]} Bxg2 {[%emt 0:03:21]} 15. Kxg2 {[%emt 0:00:09]} Bf6 {[%emt 0:00:06]} 16. Kg1 {[%emt 0:04:13]} Re8 {[%emt 0:00:14]} 17. Nd2 {[%emt 0:06:50]} g6 {[%emt 0:01:44]} 18. Rc1 {[%emt 0:04:42]} Bg7 {[%emt 0:01:55]} 19. Nb3 {[%emt 0:04:35]} c6 {[%emt 0:03:08]} 20. Bb2 {[%emt 0:05:25]} h5 {[%emt 0:03:49]} 21. e3 {[%emt 0:06:12]} Nf5 {[%emt 0:00:11]} 22. e4 {[%emt 0:04:06]} Nd6 {[%emt 0:03:42]} 23. f4 {[%emt 0:09:21]} h4 {[%emt 0:05:11]} 24. Qf3 {[%emt 0:02:51]} hxg3 {[%emt 0:03:29]} 25. hxg3 {[%emt 0:01:09]} exf4 {[%emt 0:02:39]} 26. Bxg7 {[%emt 0:00:29]} Kxg7 {[%emt 0:00:04]} 27. gxf4 {[%emt 0:02:11]} Rh8 {[%emt 0:01:32]} 28. Qg3 {[%emt 0:04:52]} Qh4 {[%emt 0:00:46]} 29. Kg2 {[%emt 0:01:12]} Rad8 {[%emt 0:01:56]} 30. Qxh4 {[%emt 0:06:00]} Rxh4 {[%emt 0:00:01]} 31. a4 {[%emt 0:00:50]} Rdh8 32. Nc5 {[%emt 0:05:31]} Rh2+ {[%emt 0:06:25]} 33. Kg1 {[%emt 0:05:10]} Rb2 {[%emt 0:06:56]} 34. Rb1 Rbh2 35. Rbc1 {[%emt 0:03:24]} Ne8 {[%emt 0:02:48]} 36. e5 {[%emt 0:01:14]} Nc7 {[%emt 0:00:10]} 37. Nxb7 {[%emt 0:01:39]} Nd5 {[%emt 0:00:38]} 38. Rce1 {[%emt 0:00:43]} Nc3 {[%emt 0:04:38]} 39. Na5 {[%emt 0:00:36]} Ne2+ {[%emt 0:09:14]} 40. Rxe2 {[%emt 0:00:00]} Rxe2 {[%emt 0:00:00]} 41. Nxc6 {[%emt 0:01:53]} Rhh2 {[%emt 0:00:17]} 42. Rc1 {[%emt 0:00:54]} Rhg2+ 43. Kh1 {[%emt 0:00:22]} Rh2+ {[%emt 0:02:56]} 44. Kg1 {[%emt 0:00:03]} Reg2+ {[%emt 0:00:06]} 45. Kf1 {[%emt 0:00:08]} Ra2 {[%emt 0:00:46]} 46. Kg1 {[%emt 0:00:08]} Rhg2+ {[%emt 0:00:17]} 47. Kh1 {[%emt 0:00:04]} Rg4 48. Nxa7 Rxa4 {[%emt 0:01:20]} 49. Nc6 {[%emt 0:01:57]} Ra3 {[%emt 0:01:12]} 50. Rd1 Rb3 {[%emt 0:00:48]} 51. Kh2 {[%emt 0:02:59]} Kh6 52. d4 {[%emt 0:01:14]} Kh5 {[%emt 0:00:44]} 53. Rd2 {[%emt 0:01:27]} Kh4 {[%emt 0:02:34]} 54. Rg2 {[%emt 0:00:10]} Rxf4 {[%emt 0:00:34]} 55. d5 {[%emt 0:00:44]} Rc4 {[%emt 0:02:17]} 56. Rf2 {[%emt 0:04:59]} Rd3 {[%emt 0:04:05]} 57. Ne7 {[%emt 0:04:13]} Rh3+ {[%emt 0:05:19]} 58. Kg2 {[%emt 0:00:19]} Rxb4 {[%emt 0:09:09]} 59. Rxf7 {[%emt 0:02:05]} Rg3+ {[%emt 0:03:04]} 60. Kh2 {[%emt 0:02:17]} Rb2+ {[%emt 0:00:34]} 61. Kh1 {[%emt 0:00:08]} Rh3+ {[%emt 0:01:07]} 62. Kg1 {[%emt 0:00:06]} Kg3 {[%emt 0:00:06]} 63. Nxg6 {[%emt 0:02:55]} Rg2+ {[%emt 0:00:24]} 64. Kf1 {[%emt 0:00:05]} Rh1# {[%emt 0:00:04]} 0-1

[Event "69th RUS-ch Women Higher League 2019"]
[Site "Yaroslavl"]
[Date "2019.07.04"]
[Round "7.13"]
[White "Gritsayeva, Oksana"]
[Black "Chernyak, Viktoria"]
[Result "1-0"]
[ECO "B10"]
[WhiteElo "2381"]
[BlackElo "2253"]
[Annotator "NA"]
[PlyCount "83"]
[EventDate "2019.06.27"]
[EventType "swiss"]
[EventCountry "RUS"]
[SourceTitle "playchess.com"]
[Source "ChessBase"]
[SourceQuality "1"]
[TimeControl "40/5400+30:1800+30"]

1. e4 {[%emt 0:00:00]} c6 {[%emt 0:00:00]} 2. Nc3 {[%emt 0:00:00]} d5 {[%emt 0:00:05]} 3. Qf3 {[%emt 0:00:05]} e6 {[%emt 0:03:50]} 4. d4 {[%emt 0:01:53]} Qb6 {[%emt 0:06:17]} 5. Bd3 {[%emt 0:12:41]} Qxd4 {[%emt 0:04:55]} 6. Nge2 {[%emt 0:00:25]} Qb6 {[%emt 0:01:04]} 7. O-O {[%emt 0:04:05]} Nf6 {[%emt 0:03:16]} 8. Qg3 {[%emt 0:07:40]} Na6 {[%emt 0:06:36]} 9. Be3 {[%emt 0:08:14]} Qc7 {[%emt 0:02:06]} 10. Bf4 {[%emt 0:06:59]} Qb6 {[%emt 0:05:53]} 11. exd5 {[%emt 0:07:49]} cxd5 {[%emt 0:05:16]} 12. Be3 {[%emt 0:04:25]} Qd6 {[%emt 0:03:31]} 13. Bf4 {[%emt 0:02:55]} Qb6 {[%emt 0:15:27]} 14. Be5 {[%emt 0:00:42]} Bd7 {[%emt 0:01:24]} 15. a3 {[%emt 0:02:53]} h5 {[%emt 0:03:43]} 16. Rfe1 {[%emt 0:04:24]} O-O-O {[%emt 0:06:13]} 17. h3 {[%emt 0:02:30]} h4 {[%emt 0:05:12]} 18. Qf3 {[%emt 0:00:28]} Rh6 {[%emt 0:02:52]} 19. b4 {[%emt 0:01:51]} Nc7 {[%emt 0:02:52]} 20. Bd4 {[%emt 0:00:50]} Qc6 {[%emt 0:00:56]} 21. b5 {[%emt 0:06:09]} Qd6 {[%emt 0:00:05]} 22. Qe3 {[%emt 0:00:09]} b6 {[%emt 0:00:45]} 23. a4 {[%emt 0:00:14]} Rh5 {[%emt 0:00:26]} 24. f4 {[%emt 0:00:53]} Kb7 {[%emt 0:03:10]} 25. a5 {[%emt 0:00:17]} Be8 {[%emt 0:02:10]} 26. Nc1 {[%emt 0:06:26]} Nd7 {[%emt 0:00:27]} 27. Nb3 {[%emt 0:00:37]} f6 {[%emt 0:01:48]} 28. Be2 {[%emt 0:04:33]} e5 {[%emt 0:01:23]} 29. Bxh5 {[%emt 0:01:12]} exd4 {[%emt 0:00:26]} 30. Nxd4 {[%emt 0:04:57]} Bxh5 {[%emt 0:00:07]} 31. axb6 {[%emt 0:00:16]} axb6 {[%emt 0:01:07]} 32. Nc6 {[%emt 0:00:53]} Re8 {[%emt 0:00:12]} 33. Qd2 {[%emt 0:02:48]} Qc5+ {[%emt 0:01:57]} 34. Kh1 {[%emt 0:00:27]} Bd6 {[%emt 0:01:09]} 35. Rxe8 {[%emt 0:01:11]} Bxe8 {[%emt 0:00:10]} 36. Qe1 {[%emt 0:01:00]} Bg6 {[%emt 0:02:27]} 37. Ra7+ {[%emt 0:01:34]} Kc8 {[%emt 0:00:03]} 38. Qa1 {[%emt 0:00:21]} Bxf4 {[%emt 0:05:03]} 39. Na4 {[%emt 0:03:07]} Qe3 {[%emt 0:01:10]} 40. Nc3 {[%emt 0:00:00]} Qc5 {[%emt 0:00:00]} 41. Nxd5 {[%emt 0:04:00]} Bd6 {[%emt 0:16:42]} 42. Rxc7+ {[%emt 0:01:05]} 1-0